bitfinex/quotes_BTCUSD_20241002
["timestamp","ask_amount","ask_price","bid_price","bid_amount"]
[1727843457106,0.130663,61698.0,61694.0,0.129672]
[1727843457318,0.130663,61698.0,61695.0,0.129669]
[1727843457531,0.002,61697.0,61695.0,0.129669]
[1727843457733,0.130663,61698.0,61695.0,0.129669]
[1727843457941,0.133663,61698.0,61695.0,0.129669]
[1727843458375,0.133663,61698.0,61694.0,0.00082]
[1727843458376,0.129668,61696.0,61694.0,0.00082]
[1727843458602,0.129666,61697.0,61694.0,0.00082]
[1727843459433,0.129666,61697.0,61694.0,0.130491]
[1727843459707,0.004,61698.0,61695.0,0.129669]
[1727843459929,0.129664,61698.0,61695.0,0.129669]
[1727843460167,0.001,61696.0,61694.0,0.00082]
[1727843460386,0.129664,61698.0,61694.0,0.13049]
[1727843460616,0.129666,61697.0,61694.0,0.13049]
[1727843460847,0.131666,61697.0,61694.0,0.13049]
[1727843461076,0.002,61697.0,61694.0,0.13049]
[1727843461307,0.130663,61698.0,61694.0,0.13049]
[1727843461763,0.001,61696.0,61694.0,0.13049]
[1727843462745,0.001,61696.0,61695.0,0.12967]
[1727843463213,0.001,61698.0,61695.0,0.12967]
[1727843463460,0.129662,61699.0,61695.0,0.12967]
[1727843463701,0.002,61697.0,61695.0,0.12967]
[1727843463959,0.002,61697.0,61694.0,0.00182]
[1727843464235,0.12967,61695.0,61694.0,0.00182]
[1727843464457,0.29747,61695.0,61694.0,0.00182]
[1727843465241,0.29747,61695.0,61694.0,0.00082]
[1727843465459,0.32287503,61695.0,61694.0,0.00082]
[1727843466449,0.32587503,61695.0,61694.0,0.00082]
[1727843467500,0.33087503,61695.0,61694.0,0.00082]
[1727843470457,0.03340503,61695.0,61694.0,0.00082]
[1727843470700,0.03340503,61695.0,61694.0,0.44530071]
[1727843470957,0.008,61695.0,61694.0,0.56392305]
[1727843471179,0.003,61695.0,61694.0,0.56392305]
[1727843471402,0.003,61695.0,61694.0,0.74502305]
[1727843471664,0.003,61695.0,61694.0,0.73043676]
[1727843471665,0.005,61695.0,61694.0,0.73043676]
[1727843471882,0.005,61695.0,61694.0,0.75124747]
[1727843472120,0.008,61695.0,61694.0,0.75124747]
[1727843472387,0.008,61695.0,61694.0,0.74924747]
[1727843472623,0.005,61695.0,61694.0,0.74924747]
[1727843472851,0.001,61695.0,61694.0,0.76524747]
[1727843473075,0.001,61695.0,61694.0,0.76324747]
[1727843473291,0.002,61695.0,61694.0,0.77424747]
[1727843473504,0.001,61695.0,61694.0,0.76324747]
[1727843473737,0.001,61695.0,61694.0,0.77724747]
[1727843473955,0.002,61695.0,61694.0,0.77724747]
[1727843474384,0.002,61695.0,61694.0,0.77924747]
[1727843474598,0.002,61695.0,61694.0,0.77724747]
[1727843474815,0.002,61695.0,61694.0,0.77717813]
[1727843478141,0.002,61695.0,61694.0,0.75843676]
[1727843478365,0.002,61695.0,61694.0,0.77716822]
[1727843478591,0.002,61695.0,61694.0,0.75843676]
[1727843478879,0.002,61695.0,61694.0,0.77716923]
[1727843479522,0.002,61695.0,61694.0,0.77916923]
[1727843479959,0.002,61695.0,61694.0,0.78416923]
[1727843481576,0.002,61695.0,61694.0,0.76343676]
[1727843481820,0.002,61695.0,61694.0,0.78210563]
[1727843485222,0.002,61695.0,61694.0,0.77710563]
[1727843485444,0.002,61695.0,61694.0,0.44609137]
[1727843485677,0.002,61695.0,61694.0,0.4274225]
[1727843486339,0.002,61695.0,61694.0,0.3274225]
[1727843486601,0.002,61695.0,61694.0,0.32318645]
[1727843487667,0.0826,61700.0,61697.0,0.129664]
[1727843487905,0.341919,61700.0,61697.0,0.16469445]
[1727843488133,0.341919,61700.0,61694.0,0.00782]
[1727843488134,0.12967,61695.0,61694.0,0.00782]
[1727843488345,0.45988426,61695.0,61694.0,0.00782]
[1727843488561,0.455214,61695.0,61694.0,0.00082]
[1727843488770,0.50333995,61695.0,61694.0,0.00782]
[1727843489001,0.50433995,61695.0,61694.0,0.01382]
[1727843489457,0.52874626,61695.0,61694.0,0.00082]
[1727843489674,0.53474626,61695.0,61694.0,0.00082]
[1727843490360,0.38930226,61695.0,61694.0,0.00082]
[1727843490566,0.33717631,61695.0,61694.0,0.00082]
[1727843490778,0.34517631,61695.0,61694.0,0.00182]
[1727843491826,0.34517631,61695.0,61694.0,0.00282]
[1727843491827,0.35417631,61695.0,61694.0,0.00282]
[1727843492038,0.34417631,61695.0,61694.0,0.00182]
[1727843492254,0.04808985,61700.0,61694.0,0.00082]
[1727843492464,0.0773,61702.0,61695.0,0.16469445]
[1727843492677,0.0773,61702.0,61698.0,0.246327]
[1727843492889,0.0773,61702.0,61695.0,0.15569445]
[1727843492890,0.0773,61702.0,61701.0,0.129657]
[1727843493318,0.0773,61702.0,61699.0,0.12966]
[1727843493973,0.01,61702.0,61701.0,0.129657]
[1727843494204,0.01,61702.0,61700.0,0.259318]
[1727843494423,0.01,61702.0,61701.0,0.129657]
[1727843495088,0.01,61702.0,61699.0,0.129659]
[1727843495319,0.01,61702.0,61700.0,0.129659]
[1727843495320,0.002,61702.0,61700.0,0.129659]
[1727843495758,0.219651,61704.0,61700.0,0.129659]
[1727843496186,0.219651,61704.0,61698.0,0.29435645]
[1727843496187,0.09,61704.0,61698.0,0.29435645]
[1727843496420,0.24011426,61704.0,61694.0,0.00082]
[1727843496647,0.40943526,61700.0,61695.0,0.24296023]
[1727843496889,0.129666,61697.0,61695.0,0.24296023]
[1727843497095,0.129666,61697.0,61694.0,0.00082]
[1727843498230,0.129666,61697.0,61695.0,0.004]
[1727843498643,0.129666,61697.0,61694.0,0.00082]
[1727843498861,0.02540433,61698.0,61695.0,0.12967]
[1727843499087,0.02540433,61698.0,61694.0,0.00782]
[1727843499088,0.15506833,61698.0,61694.0,0.00782]
[1727843499309,0.15506833,61698.0,61694.0,0.134492]
[1727843499728,0.15506833,61698.0,61695.0,0.003]
[1727843499938,0.15506833,61698.0,61694.0,0.134492]
[1727843500116,0.15506833,61698.0,61694.0,0.130492]
[1727843500330,0.129666,61697.0,61694.0,0.130492]
[1727843500538,0.15506933,61698.0,61695.0,0.004]
[1727843500963,0.15506933,61698.0,61694.0,0.130492]
[1727843501414,0.129666,61697.0,61694.0,0.00082]
[1727843502073,0.02540433,61698.0,61694.0,0.00082]
[1727843502074,0.259331,61698.0,61694.0,0.00082]
[1727843502282,0.0773,61696.0,61694.0,0.00082]
[1727843502704,0.206969,61696.0,61694.0,0.00082]
[1727843502922,0.0773,61696.0,61694.0,0.130491]
[1727843503145,0.0773,61696.0,61694.0,0.00082]
[1727843503349,0.12967,61695.0,61694.0,0.00082]
[1727843505051,0.12967,61695.0,61694.0,0.00282]
[1727843505479,0.15507588,61695.0,61694.0,0.00282]
[1727843507042,0.15507588,61695.0,61694.0,0.00082]
[1727843507681,0.02540588,61695.0,61694.0,0.00082]
[1727843507890,0.02540588,61695.0,61694.0,0.130492]
[1727843509114,0.02540588,61695.0,61694.0,0.00082]
[1727843509324,0.15507588,61695.0,61694.0,0.00082]
[1727843509954,0.02540588,61695.0,61694.0,0.29518645]
[1727843510166,0.12967,61695.0,61694.0,0.00082]
[1727843510381,0.0794,61697.0,61694.0,0.00082]
[1727843510382,0.129668,61696.0,61694.0,0.00082]
[1727843510603,0.209067,61697.0,61694.0,0.00082]
[1727843511222,0.209067,61697.0,61694.0,0.130491]
[1727843511643,0.209067,61697.0,61694.0,0.00082]
[1727843511796,0.129668,61696.0,61694.0,0.00082]
[1727843512280,0.12967,61695.0,61694.0,0.00082]
[1727843515313,0.15507577,61695.0,61694.0,0.00082]
[1727843517865,0.02540577,61695.0,61694.0,0.00082]
[1727843518038,0.02540577,61695.0,61694.0,0.130492]
[1727843519342,0.02540577,61695.0,61694.0,0.29518645]
[1727843520212,0.02540577,61695.0,61694.0,0.29618645]
[1727843520677,0.02540577,61695.0,61694.0,0.29518645]
[1727843520911,0.02540577,61695.0,61694.0,0.30018645]
[1727843521134,0.00164,61698.0,61697.0,0.129665]
[1727843521565,0.00164,61698.0,61697.0,0.29435945]
[1727843522039,0.00164,61698.0,61697.0,0.37910083]
[1727843522250,0.00164,61698.0,61697.0,0.37585945]
[1727843522917,0.00164,61698.0,61697.0,0.37985945]
[1727843523120,0.00164,61698.0,61697.0,0.37585945]
[1727843523385,0.00164,61698.0,61697.0,0.29435945]
[1727843524222,0.00164,61698.0,61697.0,0.29859621]
[1727843524426,0.00164,61698.0,61697.0,0.30959621]
[1727843524645,0.00164,61698.0,61697.0,0.30459621]
[1727843525120,0.00164,61698.0,61697.0,0.30759621]
[1727843525328,0.00164,61698.0,61697.0,0.30859621]
[1727843525736,0.00164,61698.0,61697.0,0.31759621]
[1727843527614,0.00164,61698.0,61697.0,0.41759621]
[1727843528243,0.00164,61698.0,61697.0,0.59669621]
[1727843528470,0.00164,61698.0,61697.0,0.58769621]
[1727843528926,0.00164,61698.0,61697.0,0.59069621]
[1727843529154,0.00164,61698.0,61697.0,0.57769621]
[1727843529356,0.00164,61698.0,61697.0,0.59251621]
[1727843530218,0.00164,61698.0,61697.0,0.60251621]
[1727843530446,0.00164,61698.0,61697.0,0.60451621]
[1727843530661,0.00164,61698.0,61697.0,0.60951621]
[1727843530888,0.00164,61698.0,61697.0,0.58551621]
[1727843531099,0.00164,61698.0,61697.0,0.59951621]
[1727843531335,0.00164,61698.0,61697.0,0.61351621]
[1727843531539,0.00164,61698.0,61697.0,0.58551621]
[1727843531750,0.00164,61698.0,61697.0,0.59951621]
[1727843531963,0.00164,61698.0,61697.0,0.61351621]
[1727843532616,0.00164,61698.0,61697.0,0.59951621]
[1727843533263,0.00164,61698.0,61697.0,0.58551621]
[1727843533468,0.00164,61698.0,61697.0,0.59951621]
[1727843533898,0.00164,61698.0,61697.0,0.61351621]
[1727843538573,0.00164,61698.0,61697.0,0.61151621]
[1727843539004,0.00164,61698.0,61697.0,0.61351621]
[1727843542272,0.00164,61698.0,61697.0,0.67844721]
[1727843548382,0.00164,61698.0,61697.0,0.70808021]
[1727843548801,0.00164,61698.0,61697.0,0.67844721]
[1727843549435,0.00164,61698.0,61697.0,0.70808021]
[1727843549855,0.00164,61698.0,61697.0,0.52203697]
[1727843550066,0.00164,61698.0,61697.0,0.43241621]
[1727843550286,0.00164,61698.0,61697.0,0.43441621]
[1727843551428,0.00164,61698.0,61697.0,0.43241621]
[1727843552275,0.00164,61698.0,61697.0,0.46210597]
[1727843552696,0.00164,61698.0,61697.0,0.46410597]
[1727843553111,0.00164,61698.0,61697.0,0.46421065]
[1727843553757,0.00164,61698.0,61697.0,0.46221065]
[1727843554419,0.00164,61698.0,61697.0,0.46421065]
[1727843555030,0.00164,61698.0,61697.0,0.46221065]
[1727843556348,0.00164,61698.0,61697.0,0.4622739]
[1727843556560,0.00164,61698.0,61697.0,0.4572739]
[1727843558767,0.09464,61698.0,61697.0,0.4572739]
[1727843560132,0.09464,61698.0,61697.0,0.44341067]
[1727843560348,0.09464,61698.0,61697.0,0.42741621]
[1727843560573,0.09464,61698.0,61697.0,0.41341621]
[1727843561002,0.09464,61698.0,61697.0,0.42941067]
[1727843561216,0.09464,61698.0,61697.0,0.39941621]
[1727843561428,0.09464,61698.0,61697.0,0.41341621]
[1727843561875,0.09464,61698.0,61697.0,0.42641621]
[1727843562323,0.09464,61698.0,61697.0,0.41341621]
[1727843562531,0.09464,61698.0,61697.0,0.42741621]
[1727843562771,0.09464,61698.0,61697.0,0.41341621]
[1727843562999,0.09464,61698.0,61697.0,0.42741621]
[1727843563884,0.09464,61698.0,61697.0,0.41341621]
[1727843564300,0.09464,61698.0,61697.0,0.42741621]
[1727843569399,0.09464,61698.0,61697.0,0.42317945]
[1727843573809,0.09464,61698.0,61697.0,0.5218655]
[1727843584030,0.09464,61698.0,61697.0,0.76482573]
[1727843584031,0.00164,61698.0,61697.0,0.76482573]
[1727843584280,0.00164,61698.0,61697.0,0.55195306]
[1727843585740,0.00164,61698.0,61697.0,0.5218655]
[1727843585967,0.00164,61698.0,61697.0,0.55389585]
[1727843586203,0.00164,61698.0,61697.0,0.55189585]
[1727843589329,0.00164,61698.0,61697.0,0.52602093]
[1727843589576,0.00164,61698.0,61697.0,0.45740656]
[1727843590596,0.09594,61698.0,61697.0,0.35740656]
[1727843590858,0.17514,61698.0,61697.0,0.32317945]
[1727843600585,0.17514,61698.0,61697.0,0.02882]
[1727843600586,0.322481,61698.0,61697.0,0.02882]
[1727843600797,0.304803,61698.0,61697.0,0.02882]
[1727843601255,0.304803,61698.0,61697.0,0.01482]
[1727843601518,0.59106393,61698.0,61697.0,0.01482]
[1727843601728,0.59106393,61698.0,61697.0,0.02782]
[1727843602137,0.59106393,61698.0,61697.0,0.01482]
[1727843602351,0.59106393,61698.0,61694.0,0.00082]
[1727843602352,0.12967,61695.0,61694.0,0.00082]
[1727843602563,0.12967,61695.0,61685.0,0.24296023]
[1727843602564,0.1806,61688.0,61685.0,0.24296023]
[1727843602848,0.0824,61687.0,61685.0,0.24296023]
[1727843603110,0.212087,61687.0,61685.0,0.24296023]
[1727843603326,0.129689,61686.0,61682.0,0.130515]
[1727843603554,0.0824,61687.0,61682.0,0.130515]
[1727843603772,0.259365,61689.0,61682.0,0.000819]
[1727843603773,0.129695,61683.0,61682.0,0.000819]
[1727843604202,0.212095,61683.0,61682.0,0.000819]
[1727843605302,0.33570562,61683.0,61682.0,0.000819]
[1727843605770,0.40789687,61683.0,61682.0,0.003819]
[1727843605985,0.40789687,61683.0,61682.0,0.004819]
[1727843606200,0.38248625,61683.0,61682.0,0.001819]
[1727843606422,0.38248625,61683.0,61682.0,0.000819]
[1727843606423,0.312295,61683.0,61682.0,0.000819]
[1727843606630,0.312295,61683.0,61682.0,0.001819]
[1727843606631,0.319295,61683.0,61682.0,0.001819]
[1727843606844,0.312295,61683.0,61682.0,0.000819]
[1727843607283,0.320295,61683.0,61682.0,0.001819]
[1727843607539,0.43127313,61683.0,61682.0,0.001819]
[1727843608249,0.318295,61683.0,61682.0,0.001819]
[1727843608477,0.323295,61683.0,61682.0,0.001819]
[1727843609426,0.34870781,61683.0,61682.0,0.001819]
[1727843610611,0.21901281,61683.0,61675.0,0.24296023]
[1727843610693,0.12971,61676.0,61675.0,0.24296023]
[1727843610938,0.45434718,61676.0,61675.0,0.24296023]
[1727843611144,0.129716,61673.0,61672.0,0.000819]
[1727843611353,0.303916,61673.0,61672.0,0.000819]
[1727843612514,0.303916,61673.0,61672.0,0.002819]
[1727843612730,0.1742,61673.0,61672.0,0.002819]
[1727843612988,0.259411,61678.0,61672.0,0.002819]
[1727843612989,0.259411,61678.0,61672.0,0.006819]
[1727843612990,0.0978,61678.0,61672.0,0.006819]
[1727843613199,0.1742,61678.0,61677.0,0.129707]
[1727843613410,0.1742,61678.0,61676.0,0.129709]
[1727843614244,0.1692,61678.0,61673.0,0.259431]
[1727843614455,0.1692,61678.0,61675.0,0.129711]
[1727843614659,0.1692,61678.0,61672.0,0.16951345]
[1727843614873,0.1692,61678.0,61676.0,0.129708]
[1727843615083,0.19461353,61678.0,61676.0,0.129708]
[1727843615504,0.19761353,61678.0,61676.0,0.129708]
[1727843615707,0.19761353,61678.0,61672.0,0.29523045]
[1727843615708,0.129711,61676.0,61672.0,0.29523045]
[1727843616124,0.129711,61676.0,61673.0,0.129716]
[1727843616326,0.19761353,61678.0,61673.0,0.129716]
[1727843616327,0.129708,61677.0,61673.0,0.129716]
[1727843616532,0.129713,61675.0,61672.0,0.000819]
[1727843616732,0.129714,61674.0,61672.0,0.000819]
[1727843616939,0.259425,61675.0,61672.0,0.001819]
[1727843617149,0.129716,61673.0,61672.0,0.001819]
[1727843617379,0.206116,61673.0,61672.0,0.001819]
[1727843617610,0.303916,61673.0,61672.0,0.001819]
[1727843618085,0.303916,61673.0,61672.0,0.000819]
[1727843619124,0.303916,61673.0,61672.0,0.004819]
[1727843620393,0.303916,61673.0,61672.0,0.006819]
[1727843620394,0.45435318,61673.0,61672.0,0.006819]
[1727843621086,0.45435318,61673.0,61672.0,0.000819]
[1727843621303,0.45835318,61673.0,61672.0,0.000819]
[1727843621744,0.45935318,61673.0,61672.0,0.000819]
[1727843621954,0.308916,61673.0,61672.0,0.000819]
[1727843625488,0.32933088,61673.0,61672.0,0.000819]
[1727843632078,0.303916,61673.0,61672.0,0.000819]
[1727843635424,0.32933116,61673.0,61672.0,0.000819]
[1727843635590,0.20461516,61673.0,61672.0,0.000819]
[1727843636593,0.1792,61673.0,61672.0,0.000819]
[1727843637133,0.18084,61673.0,61672.0,0.000819]
[1727843637754,0.00664,61673.0,61672.0,0.130537]
[1727843638492,0.00564,61673.0,61672.0,0.130537]
[1727843638848,0.00164,61673.0,61672.0,0.131537]
[1727843639053,0.00264,61673.0,61672.0,0.131537]
[1727843639291,0.00264,61673.0,61672.0,0.130537]
[1727843639518,0.00164,61673.0,61672.0,0.130537]
[1727843639652,0.00164,61673.0,61672.0,0.131537]
[1727843639856,0.00264,61673.0,61672.0,0.001819]
[1727843640059,0.00264,61673.0,61672.0,0.131537]
[1727843640264,0.00264,61673.0,61672.0,0.001819]
[1727843641149,0.00264,61673.0,61672.0,0.131537]
[1727843642736,0.00264,61673.0,61672.0,0.29623145]
[1727843646348,0.00264,61673.0,61672.0,0.37453145]
[1727843646548,0.00264,61673.0,61672.0,0.48943702]
[1727843647013,0.00164,61673.0,61672.0,0.48943702]
[1727843647275,0.00164,61673.0,61672.0,0.49243702]
[1727843647693,0.00164,61673.0,61672.0,0.49143702]
[1727843648130,0.00164,61673.0,61672.0,0.59643702]
[1727843648590,0.00164,61673.0,61672.0,0.58843702]
[1727843648819,0.00264,61673.0,61672.0,0.60243702]
[1727843649291,0.00264,61673.0,61672.0,0.59868375]
[1727843649715,0.00164,61673.0,61672.0,0.60368375]
[1727843650148,0.00264,61673.0,61672.0,0.61168375]
[1727843650355,0.00164,61673.0,61672.0,0.60368375]
[1727843650593,0.00264,61673.0,61672.0,0.61268375]
[1727843650804,0.00264,61673.0,61672.0,0.42668375]
[1727843651229,0.00264,61673.0,61672.0,0.31523145]
[1727843651451,0.00264,61673.0,61672.0,0.020819]
[1727843651664,0.212056,61673.0,61672.0,0.009819]
[1727843651870,0.211056,61673.0,61672.0,0.014819]
[1727843652085,0.212056,61673.0,61672.0,0.028819]
[1727843652524,0.211056,61673.0,61672.0,0.000819]
[1727843652736,0.212056,61673.0,61672.0,0.020819]
[1727843653175,0.32184082,61673.0,61672.0,0.011819]
[1727843653400,0.32184082,61673.0,61672.0,0.015819]
[1727843653401,0.472278,61673.0,61672.0,0.015819]
[1727843653614,0.32184082,61673.0,61672.0,0.015819]
[1727843653822,0.211056,61673.0,61672.0,0.011819]
[1727843654231,0.211056,61673.0,61672.0,0.000819]
[1727843654458,0.211056,61673.0,61672.0,0.006819]
[1727843655092,0.23647203,61673.0,61672.0,0.000819]
[1727843655293,0.23647203,61673.0,61672.0,0.001819]
[1727843655520,0.23647203,61673.0,61672.0,0.003819]
[1727843655775,0.28458536,61673.0,61672.0,0.003819]
[1727843656185,0.28458536,61673.0,61672.0,0.002819]
[1727843657007,0.28558536,61673.0,61672.0,0.002819]
[1727843657438,0.40994012,61673.0,61672.0,0.002819]
[1727843657879,0.66561541,61673.0,61672.0,0.000819]
[1727843658146,0.66561541,61673.0,61672.0,0.001819]
[1727843658899,0.85330986,61673.0,61672.0,0.001819]
[1727843659163,0.99764987,61673.0,61672.0,0.001819]
[1727843659426,1.1128471,61673.0,61672.0,0.000819]
[1727843659645,1.26270499,61673.0,61672.0,0.001819]
[1727843659843,1.25670499,61673.0,61672.0,0.000819]
[1727843660330,1.26670499,61673.0,61672.0,0.001819]
[1727843660554,1.25770499,61673.0,61672.0,0.000819]
[1727843660784,1.27170499,61673.0,61672.0,0.001819]
[1727843661014,1.27070499,61673.0,61672.0,0.001819]
[1727843661529,1.27370499,61673.0,61672.0,0.002819]
[1727843662023,1.1278471,61673.0,61672.0,0.002819]
[1727843662503,1.2278471,61673.0,61672.0,0.002819]
[1727843662756,0.418418,61672.0,61671.0,0.000819]
[1727843662982,0.418418,61672.0,61668.0,0.000819]
[1727843662983,0.40316118,61669.0,61668.0,0.000819]
[1727843663236,1.06461864,61669.0,61668.0,0.000819]
[1727843663484,1.22950046,61669.0,61668.0,0.000819]
[1727843663744,0.92021135,61669.0,61668.0,0.000819]
[1727843663970,1.18211754,61669.0,61668.0,0.000819]
[1727843664727,0.420426,61668.0,61667.0,0.000819]
[1727843664935,1.03168236,61668.0,61667.0,0.000819]
[1727843665145,1.17598987,61668.0,61667.0,0.000819]
[1727843665381,1.03142128,61668.0,61667.0,0.000819]
[1727843665594,0.91603575,61668.0,61667.0,0.000819]
[1727843665811,0.94145938,61668.0,61667.0,0.000819]
[1727843666245,0.7991998,61668.0,61667.0,0.001819]
[1727843666454,0.8081998,61668.0,61667.0,0.001819]
[1727843667095,0.1657,61660.0,61642.0,0.000819]
[1727843667301,0.28018918,61656.0,61642.0,0.000819]
[1727843667927,0.30561431,61656.0,61642.0,0.000819]
[1727843668150,0.30561431,61656.0,61643.0,0.129778]
[1727843668610,0.31261431,61656.0,61655.0,0.001819]
[1727843669057,0.38731431,61656.0,61655.0,0.000819]
[1727843669263,0.40931431,61656.0,61655.0,0.001819]
[1727843669468,0.39631431,61656.0,61655.0,0.001819]
[1727843669912,0.40831431,61656.0,61655.0,0.001819]
[1727843670553,0.41231431,61656.0,61655.0,0.000819]
[1727843670757,0.41231431,61656.0,61655.0,0.001819]
[1727843670968,0.42131431,61656.0,61655.0,0.001819]
[1727843671177,0.27087713,61656.0,61655.0,0.001819]
[1727843672074,0.18917713,61656.0,61655.0,0.001819]
[1727843672718,0.163752,61656.0,61655.0,0.001819]
[1727843675815,0.18917641,61656.0,61655.0,0.001819]
[1727843675962,0.30314125,61656.0,61655.0,0.001819]
[1727843676999,0.27771684,61656.0,61655.0,0.001819]
[1727843678015,0.163752,61656.0,61655.0,0.001819]
[1727843679939,0.18917694,61656.0,61655.0,0.001819]
[1727843682094,0.163752,61656.0,61655.0,0.001819]
[1727843685193,0.18917722,61656.0,61655.0,0.001819]
[1727843685605,0.26467722,61656.0,61655.0,0.001819]
[1727843686430,0.239252,61656.0,61655.0,0.001819]
[1727843686851,0.331452,61656.0,61655.0,0.001819]
[1727843688688,0.36110472,61656.0,61655.0,0.001819]
[1727843689139,0.38653031,61656.0,61655.0,0.001819]
[1727843690395,0.55122476,61656.0,61655.0,0.001819]
[1727843692039,0.52157204,61656.0,61655.0,0.001819]
[1727843692242,0.49614645,61656.0,61655.0,0.001819]
[1727843693795,0.331452,61656.0,61655.0,0.001819]
[1727843694241,0.163752,61656.0,61655.0,0.001819]
[1727843695264,0.18917818,61656.0,61655.0,0.001819]
[1727843695501,0.163752,61656.0,61655.0,0.001819]
[1727843697449,0.21171996,61656.0,61655.0,0.001819]
[1727843698080,0.21139596,61656.0,61655.0,0.001819]
[1727843698499,0.26080602,61656.0,61655.0,0.001819]
[1727843699572,0.3740148,61656.0,61655.0,0.001819]
[1727843699773,0.46995072,61656.0,61655.0,0.001819]
[1727843699987,0.3740148,61656.0,61655.0,0.001819]
[1727843700227,0.26107477,61656.0,61655.0,0.001819]
[1727843700678,0.47008572,61656.0,61655.0,0.001819]
[1727843701526,0.3741498,61656.0,61655.0,0.001819]
[1727843701781,0.47304254,61656.0,61655.0,0.001819]
[1727843702831,0.3741498,61656.0,61655.0,0.001819]
[1727843703069,0.47055449,61656.0,61655.0,0.001819]
[1727843703488,0.34918726,61656.0,61655.0,0.001819]
[1727843703698,0.59096718,61656.0,61655.0,0.001819]
[1727843704384,0.47046561,61656.0,61655.0,0.001819]
[1727843704878,0.34918726,61656.0,61655.0,0.001819]
[1727843706102,0.35082726,61656.0,61655.0,0.001819]
[1727843706888,0.37625265,61656.0,61655.0,0.001819]
[1727843707632,0.49690152,61656.0,61655.0,0.001819]
[1727843707891,0.47277232,61656.0,61655.0,0.001819]
[1727843708146,0.34334432,61656.0,61655.0,0.001819]
[1727843708367,0.34333968,61656.0,61655.0,0.001819]
[1727843708609,0.23782465,61656.0,61655.0,0.000819]
[1727843708855,0.31135538,61656.0,61655.0,0.000819]
[1727843709091,0.31169709,61656.0,61655.0,0.000819]
[1727843709345,0.31469709,61656.0,61655.0,0.000819]
[1727843709590,0.31069709,61656.0,61655.0,0.000819]
[1727843709821,0.21816599,61656.0,61655.0,0.000819]
[1727843710056,0.44444909,61656.0,61655.0,0.000819]
[1727843710301,0.34791799,61656.0,61655.0,0.000819]
[1727843710823,0.21816599,61656.0,61655.0,0.000819]
[1727843711025,0.10446472,61656.0,61655.0,0.000819]
[1727843711667,0.23421672,61656.0,61655.0,0.000819]
[1727843711912,0.46868683,61656.0,61655.0,0.000819]
[1727843712096,0.44454112,61656.0,61655.0,0.000819]
[1727843712317,0.44454284,61656.0,61655.0,0.000819]
[1727843712772,0.34802296,61656.0,61655.0,0.000819]
[1727843712988,0.444543,61656.0,61655.0,0.000819]
[1727843713236,0.34802296,61656.0,61655.0,0.000819]
[1727843713704,0.21827096,61656.0,61655.0,0.000819]
[1727843713933,0.21827096,61656.0,61655.0,0.130573]
[1727843714146,0.03206539,61656.0,61655.0,0.130573]
[1727843714365,0.10445395,61656.0,61655.0,0.130573]
[1727843714597,0.00664,61656.0,61655.0,0.130573]
[1727843715041,0.00164,61656.0,61655.0,0.130573]
[1727843715266,0.00564,61656.0,61655.0,0.130573]
[1727843715489,0.00564,61656.0,61655.0,0.62384385]
[1727843715490,0.00264,61656.0,61655.0,0.62384385]
[1727843716144,0.00164,61656.0,61655.0,0.000819]
[1727843716148,0.00264,61656.0,61655.0,0.136573]
[1727843716364,0.00264,61656.0,61655.0,0.006819]
[1727843716577,0.00364,61656.0,61655.0,0.136573]
[1727843717024,0.00264,61656.0,61655.0,0.130573]
[1727843718102,0.00164,61656.0,61655.0,0.130573]
[1727843718318,0.00264,61656.0,61655.0,0.137573]
[1727843718540,0.00264,61656.0,61655.0,0.007819]
[1727843718969,0.00164,61656.0,61655.0,0.000819]
[1727843719199,0.00264,61656.0,61655.0,0.136573]
[1727843723090,0.00264,61656.0,61655.0,0.30126745]
[1727843727799,0.00264,61656.0,61655.0,0.136573]
[1727843731880,0.00264,61656.0,61655.0,0.006819]
[1727843731881,0.2830684,61656.0,61655.0,0.006819]
[1727843733456,0.64150465,61656.0,61655.0,0.006819]
[1727843734099,0.64050465,61656.0,61655.0,0.000819]
[1727843734953,0.64150465,61656.0,61655.0,0.000819]
[1727843735183,0.64150465,61656.0,61655.0,0.002819]
[1727843735397,0.66593097,61656.0,61655.0,0.002819]
[1727843735593,0.66593097,61656.0,61655.0,0.000819]
[1727843735803,0.67993097,61656.0,61655.0,0.000819]
[1727843736013,0.50709472,61656.0,61655.0,0.001819]
[1727843736223,0.69282039,61656.0,61655.0,0.001819]
[1727843737701,0.89204744,61656.0,61655.0,0.001819]
[1727843737875,2.38722917,61656.0,61655.0,0.001819]
[1727843738160,2.38722917,61656.0,61644.0,0.24377923]
[1727843738161,0.302375,61645.0,61644.0,0.24377923]
[1727843738362,0.73507905,61645.0,61644.0,0.24377923]
[1727843738590,0.73507905,61645.0,61644.0,0.000819]
[1727843738591,0.63877707,61645.0,61644.0,0.000819]
[1727843738803,0.73508061,61645.0,61644.0,0.000819]
[1727843739048,0.63877707,61645.0,61644.0,0.000819]
[1727843739252,0.73508054,61645.0,61644.0,0.000819]
[1727843739465,0.74008054,61645.0,61644.0,0.000819]
[1727843740096,0.90477499,61645.0,61644.0,0.000819]
[1727843740301,0.80847152,61645.0,61644.0,0.000819]
[1727843740505,0.92880305,61645.0,61644.0,0.000819]
[1727843740711,0.97723436,61645.0,61644.0,0.000819]
[1727843740915,1.07723436,61645.0,61644.0,0.000819]
[1727843741125,1.12378465,61645.0,61644.0,0.000819]
[1727843741592,0.129794,61636.0,61634.0,0.000819]
[1727843741810,0.88705035,61636.0,61634.0,0.000819]
[1727843742017,1.07277602,61636.0,61634.0,0.000819]
[1727843742226,0.92849052,61636.0,61634.0,0.000819]
[1727843742458,0.95392695,61636.0,61634.0,0.000819]
[1727843742884,1.03012996,61636.0,61634.0,0.000819]
[1727843743315,1.04659495,61636.0,61634.0,0.000819]
[1727843744065,0.92649052,61636.0,61634.0,0.000819]
[1727843744280,1.07453687,61636.0,61634.0,0.000819]
[1727843744462,0.95649052,61636.0,61634.0,0.000819]
[1727843744659,0.94249052,61636.0,61634.0,0.000819]